fUSD/lending_fUSD_20250811
["ID","MTS","AMOUNT","RATE_DAILY","PERIOD"]
[378517678,1754891447976,-565.0,0.00025598,2]
[378517679,1754891447985,-2027.0,0.00025598,2]
[378517680,1754891447994,-1295.0,0.00025598,2]
[378517681,1754891448004,-1171.0,0.00025598,2]
[378517682,1754891448014,-893.0,0.00025598,2]
[378517683,1754891448026,-1654.0,0.00025598,2]
[378517684,1754891448036,-6082.0,0.00025598,2]
[378517685,1754891448046,-4145.0,0.00025598,2]
[378517686,1754891448059,-150.0,0.00025754,2]
[378517687,1754891448070,-500.0,0.00025754,2]
[378517688,1754891448080,-500.0,0.00025754,2]
[378517689,1754891448091,-150.0,0.00025754,2]
[378517690,1754891448101,-150.0,0.00025754,2]
[378517691,1754891448112,-500.0,0.00025754,2]
[378517692,1754891448123,-500.0,0.00025754,2]
[378517693,1754891448133,-500.0,0.00025754,2]
[378517695,1754891448144,-216.40163574,0.00025754,2]
[378517696,1754891448154,-150.0,0.00025754,2]
[378517697,1754891448164,-500.0,0.00025754,2]
[378517698,1754891448175,-500.0,0.00025754,2]
[378517699,1754891448185,-153.10992471,0.00025771,20]
[378517700,1754891448195,-482.0,0.0002578,2]
[378517701,1754891448205,-1047.52,0.000258,7]
[378517702,1754891448215,-188.93,0.00025829,7]
[378517703,1754891448225,-41406.92,0.000259,2]
[378517704,1754891448235,-334.3204981,0.00025996,2]
[378517705,1754891448245,-1000.0,0.00025999,2]
[378517706,1754891448255,-235.030308,0.00026,7]
[378517707,1754891448264,-235.030308,0.00026,7]
[378517708,1754891448277,-285.25996,0.00026,7]
[378517709,1754891448290,-285.25996,0.00026,7]
[378517710,1754891448302,-312.145439,0.00026,7]
[378517711,1754891448311,-312.145439,0.00026,7]
[378517712,1754891448321,-354.007611,0.00026,7]
[378517713,1754891448331,-354.007611,0.00026,7]
[378517714,1754891448341,-151.0,0.00026,7]
[378517715,1754891448351,-280.0,0.00026,120]
[378517716,1754891448361,-513.78,0.00026,7]
[378517717,1754891448372,-457.87080987,0.00026,7]
[378517718,1754891448382,-842.86497659,0.00026,7]
[378517719,1754891448392,-1376.63,0.00026,7]
[378517720,1754891448401,-287.61899177,0.00026012,2]
[378517721,1754891448411,-150.0,0.00026028,2]
[378517722,1754891448421,-500.0,0.00026028,2]
[378517723,1754891448430,-500.0,0.00026028,2]
[378517724,1754891448440,-150.0,0.00026028,2]
[378517725,1754891448449,-254.53819805,0.00026028,2]
[378517726,1754891448458,-500.0,0.00026028,2]
[378517727,1754891448467,-178.34804788,0.00026028,2]
[378517728,1754891448477,-608.57502187,0.00026028,2]
[378517729,1754891448486,-150.0,0.00026028,2]
[378517730,1754891448496,-500.0,0.00026028,2]
[378517731,1754891448506,-258.67675173,0.00026028,2]
[378517732,1754891448515,-172.0,0.00026082,19]
[378517733,1754891448524,-17871.74,0.000261,7]
[378517734,1754891448534,-226.6,0.00026163,2]
[378517735,1754891448543,-1491.30447232,0.0002621,2]
[378517736,1754891448553,-207.83661963,0.00026302,2]
[378517737,1754891448563,-500.0,0.00026302,2]
[378517738,1754891448573,-302.00561304,0.00026302,2]
[378517739,1754891448583,-150.0,0.00026302,2]
[378517740,1754891448593,-500.0,0.00026302,2]
[378517741,1754891448602,-205.03889308,0.00026302,2]
[378517742,1754891448612,-357.23718148,0.00026302,2]
[378517743,1754891448621,-200.0,0.00026344,2]
[378517744,1754891448631,-4016.72,0.00026388,2]
[378517745,1754891448640,-253.59439474,0.00026576,2]
[378517746,1754891448649,-187.93635171,0.00026576,2]
[378517747,1754891448659,-500.0,0.00026576,2]
[378517748,1754891448668,-202.0,0.0002662,2]
[378517749,1754891448679,-321.9,0.00026676,2]
[378517750,1754891448690,-152.0,0.00026692,3]
[378517751,1754891448699,-8271.68491755,0.00026693,6]
[378517752,1754891448709,-1000.0,0.00026823,2]
[378517753,1754891448719,-1400.71,0.00026849,7]
[378517754,1754891448728,-500.0,0.0002685,2]
[378517755,1754891448738,-5000.0,0.00026888,4]
[378517756,1754891448747,-472.0,0.0002697,2]
[378517757,1754891448756,-341.0,0.00027,7]
[378517758,1754891448766,-1376.63,0.00027,7]
[378517759,1754891448775,-226.6,0.00027026,2]
[378517760,1754891448785,-201.835,0.00027052,15]
[378517761,1754891448794,-3340.065,0.00027052,15]
[378517762,1754891448804,-41406.92,0.000271,2]
[378517763,1754891448813,-240.0,0.000271,2]
[378517764,1754891448823,-503.0,0.000271,2]
[378517765,1754891448834,-262.1,0.00027123,4]
[378517766,1754891448843,-3596.07,0.00027123,2]
[378517767,1754891448853,-500.0,0.00027124,2]
[378517768,1754891448863,-160.30038782,0.00027173,2]
[378517769,1754891448872,-500.0,0.00027173,2]
[378517770,1754891448881,-500.0,0.00027173,2]
[378517771,1754891448891,-500.0,0.00027173,2]
[378517772,1754891448901,-500.98663761,0.00027173,2]
[378517773,1754891448911,-165.29135572,0.00027173,2]
[378517774,1754891448921,-1000.0,0.00027173,2]
[378517775,1754891448930,-1047.52,0.000272,7]
[378517776,1754891448940,-334.3204981,0.00027342,2]
[378517777,1754891448950,-298.26089446,0.00027381,2]
[378517778,1754891448959,-2521.25,0.00027397,6]
[378517779,1754891448969,-500.0,0.00027397,2]
[378517780,1754891448979,-500.0,0.00027397,2]
[378517781,1754891448989,-500.0,0.00027397,2]
[378517783,1754891448999,-500.0,0.00027397,2]
[378517784,1754891449008,-221.6294643,0.00027397,2]
[378517785,1754891449021,-500.0,0.00027397,2]
[378517786,1754891449031,-500.0,0.00027397,2]
[378517787,1754891449041,-500.0,0.00027397,2]
[378517788,1754891449051,-300.0,0.00027397,2]
[378517789,1754891449061,-348.81,0.00027397,2]
[378517790,1754891449071,-164.31,0.00027397,80]
[378517791,1754891449081,-178.68619808,0.00027397,2]
[378517792,1754891449091,-500.0,0.00027398,2]
[378517793,1754891449100,-17871.74,0.000274,7]
[378517794,1754891449110,-2276.8068516,0.000274,2]
[378517795,1754891449119,-4055.0,0.000274,2]
[378517796,1754891449129,-310.55,0.000275,2]
[378517797,1754891449139,-258.08337236,0.00027579,2]
[378517798,1754891449149,-109224.28788625,0.0002763,2]
[378517799,1754891449159,-341.0,0.00027671,14]
[378517800,1754891449168,-500.0,0.00027672,2]
[378517801,1754891449179,-209.0,0.0002771,30]
[378517802,1754891449189,-202.0,0.0002771,2]
[378517803,1754891449200,-197.0,0.00027726,26]
[378517804,1754891449210,-188.93,0.00027744,7]
[378517805,1754891449220,-4016.72,0.0002783,2]
[378517806,1754891449231,-4249.58525775,0.00027849,2]
[378517807,1754891449241,-400.0,0.0002787,2]
[378517808,1754891449251,-700.0,0.0002787,2]
[378517809,1754891449260,-150.0,0.00027887,2]
[378517810,1754891449270,-151.0,0.00027888,2]
[378517811,1754891449280,-205.0,0.00027888,2]
[378517812,1754891449289,-205.0,0.00027888,2]
[378517813,1754891449300,-205.0,0.00027888,2]
[378517814,1754891449310,-226.6,0.00027888,2]
[378517815,1754891449320,-213.0,0.00027888,2]
[378517816,1754891449329,-213.0,0.00027888,2]
[378517817,1754891449339,-213.0,0.00027888,2]
[378517818,1754891449349,-213.0,0.00027888,2]
[378517819,1754891449358,-213.0,0.00027888,2]
[378517820,1754891449367,-213.0,0.00027888,2]
[378517821,1754891449377,-213.0,0.00027888,2]
[378517822,1754891449387,-202.0,0.00027888,2]
[378517823,1754891449397,-202.0,0.00027888,2]
[378517824,1754891449407,-202.0,0.00027888,2]
[378517825,1754891449417,-202.0,0.00027888,2]
[378517826,1754891449428,-202.0,0.00027888,2]
[378517827,1754891449438,-202.0,0.00027888,2]
[378517828,1754891449448,-202.0,0.00027888,2]
[378517829,1754891449457,-202.0,0.00027888,2]
[378517830,1754891449467,-202.0,0.00027888,2]
[378517832,1754891449476,-1000.0,0.00027888,2]
[378517833,1754891449486,-1000.0,0.00027888,2]
[378517834,1754891449499,-1000.0,0.00027888,2]
[378517835,1754891449509,-1000.0,0.00027888,2]
[378517836,1754891449518,-1000.0,0.00027888,2]
[378517837,1754891449527,-1000.0,0.00027888,2]
[378517838,1754891449537,-1000.0,0.00027888,2]
[378517839,1754891449547,-1000.0,0.00027888,2]
[378517840,1754891449558,-1000.0,0.00027888,2]
[378517841,1754891449568,-1000.0,0.00027888,2]
[378517842,1754891449577,-1000.0,0.00027888,2]
[378517843,1754891449587,-1000.0,0.00027888,2]
[378517844,1754891449597,-1000.0,0.00027888,2]
[378517845,1754891449606,-1000.0,0.00027888,2]
[378517846,1754891449616,-1000.0,0.00027888,2]
[378517847,1754891449627,-1000.0,0.00027888,2]
[378517848,1754891449636,-1000.0,0.00027888,2]
[378517849,1754891449646,-1000.0,0.00027888,2]
[378517850,1754891449655,-1000.0,0.00027888,2]
[378517851,1754891449665,-1000.0,0.00027888,2]
[378517852,1754891449674,-965.59118852,0.00027888,2]
[378517853,1754891449684,-500.0,0.00027894,2]
[378517854,1754891449693,-1000.0,0.00027899,2]
[378517855,1754891449703,-1000.0,0.00027899,2]
[378517856,1754891449713,-1000.0,0.00027899,2]
[378517857,1754891449722,-1000.0,0.00027899,2]
[378517858,1754891449732,-177029.63860679,0.000279,3]
[378517859,1754891449742,-206.281414,0.000279,7]
[378517860,1754891449752,-260.679447,0.000279,7]
[378517861,1754891449761,-260.679451,0.000279,7]
[378517862,1754891449771,-158.83383,0.000279,7]
[378517863,1754891449781,-158.83382,0.000279,7]
[378517864,1754891449791,-341.0,0.00027945,14]
[378517865,1754891449802,-500.0,0.00027946,2]
[378517866,1754891449812,-5251.33189,0.0002797,2]
[378517867,1754891449821,-5251.33189,0.0002797,2]
[378517868,1754891449831,-5251.3319,0.0002797,2]
[378517869,1754891449840,-5251.3319,0.0002797,2]
[378517870,1754891449850,-5251.33189,0.0002797,2]
[378517871,1754891449862,-211.70500488,0.00028,10]
[378517872,1754891449872,-279.2,0.00028,2]
[378517873,1754891450215,-300.0,0.00028,2]
[378517874,1754891450227,-160.0,0.00028,3]
[378517875,1754891450236,-211.73953792,0.00028,3]
[378517876,1754891450245,-211.73953792,0.00028,10]
[378517877,1754891450254,-457.87080987,0.00028,3]
[378517878,1754891450264,-842.86497659,0.00028,3]
[378517879,1754891450274,-457.87080987,0.00028,7]
[378517880,1754891450283,-457.87080987,0.00028,10]
[378517881,1754891450293,-842.86497659,0.00028,7]
[378517882,1754891450303,-5511.0,0.00028,3]
[378517883,1754891450312,-1399.35,0.00028,7]
[378517884,1754891450322,-5483.76,0.00028,7]
[378517885,1754891450331,-1376.63,0.00028,7]
[378517886,1754891450341,-150.0,0.00028017,2]
[378517887,1754891450351,-150.0,0.00028017,2]
[378517888,1754891450360,-150.0,0.00028017,2]
[378517889,1754891450370,-5251.3319,0.0002803,2]
[378517890,1754891450379,-285.52,0.00028082,2]
[378517891,1754891450389,-41406.92,0.000281,2]
[378517892,1754891450399,-463.0,0.0002815,2]
[378517893,1754891450408,-341.0,0.00028219,14]
[378517894,1754891450417,-371.23171434,0.0002822,2]
[378517895,1754891450427,-17871.74,0.000283,7]
[378517896,1754891450437,-1386.868697,0.00028329,7]
[378517897,1754891450446,-1386.868695,0.00028329,7]
[378517898,1754891450456,-372.290849,0.00028329,7]
[378517899,1754891450466,-372.290841,0.00028329,7]
[378517900,1754891450475,-150.0,0.00028332,7]
[378517901,1754891450485,-151.96590132,0.00028332,7]
[378517902,1754891450495,-1047.52,0.000284,7]
[378517903,1754891450504,-8271.68491755,0.00028486,9]
[378517904,1754891450514,-341.0,0.00028493,14]
[378517905,1754891450523,-5511.0,0.000285,5]
[378517906,1754891450533,-1253.0,0.00028598,2]
[378517907,1754891450542,-3367.0,0.00028598,2]
[378517908,1754891450554,-957.0,0.00028598,2]
[378517909,1754891450566,-810.0,0.00028598,2]
[378517910,1754891450579,-958.0,0.00028598,2]
[378517911,1754891450589,-598.0,0.00028598,2]
[378517912,1754891450599,-565.0,0.00028598,2]
[378517913,1754891450608,-2027.0,0.00028598,2]
[378517914,1754891450617,-1295.0,0.00028598,2]
[378517915,1754891450627,-1171.0,0.00028598,2]
[378517916,1754891450637,-893.0,0.00028598,2]
[378517917,1754891450646,-1654.0,0.00028598,2]
[378517918,1754891450655,-6082.0,0.00028598,2]
[378517919,1754891450665,-4145.0,0.00028598,2]
[378517920,1754891450674,-334.3204981,0.00028689,2]
[378517921,1754891450685,-1013.0,0.000287,2]
[378517922,1754891450694,-274.765301,0.00028748,7]
[378517923,1754891450703,-274.765301,0.00028748,7]
[378517924,1754891450713,-230.660612,0.00028748,7]
[378517925,1754891450723,-230.660612,0.00028748,7]
[378517926,1754891450737,-1013.752227,0.00028748,7]
[378517927,1754891450747,-1013.752227,0.00028748,7]
[378517928,1754891450756,-309.29654756,0.0002875,2]
[378517929,1754891450765,-341.0,0.00028767,14]
[378517930,1754891450775,-152.0,0.00028782,4]
[378517931,1754891450784,-209.0,0.000288,30]
[378517932,1754891450794,-50928.96493374,0.00029,2]
[378517933,1754891450804,-1399.35,0.00029,7]
[378517934,1754891450813,-5483.76,0.00029,7]
[378517935,1754891450822,-211.73953792,0.00029,7]
[378517936,1754891450832,-842.86497659,0.00029,10]
[378517937,1754891450843,-1376.63,0.00029,7]
[378517938,1754891450852,-398.0,0.00029068,2]
[378517939,1754891450862,-4249.58525775,0.0002908,2]
[378517940,1754891450871,-41406.92,0.000291,2]
[378517941,1754891450883,-184.81811687,0.00029179,2]
[378517942,1754891450892,-563.358369,0.000292,7]
[378517943,1754891450903,-563.358369,0.000292,7]
[378517944,1754891450912,-304.031542,0.000292,7]
[378517945,1754891450922,-304.031542,0.000292,7]
[378517946,1754891450933,-151.0,0.000292,7]
[378517947,1754891450944,-184.744053,0.000292,7]
[378517948,1754891450953,-151.0,0.000292,7]
[378517949,1754891450963,-722.683687,0.000292,7]
[378517950,1754891450973,-219.829089,0.000292,7]
[378517951,1754891450983,-219.829089,0.000292,7]
[378517952,1754891450992,-196.029025,0.000292,7]
[378517953,1754891451002,-196.029025,0.000292,7]
[378517954,1754891451012,-189.246881,0.000292,7]
[378517955,1754891451024,-189.246881,0.000292,7]
[378517956,1754891451034,-4016.72,0.00029272,2]
[378517957,1754891451044,-175.932253,0.00029272,7]
[378517958,1754891451054,-151.0,0.00029272,7]
[378517959,1754891451064,-176.569801,0.00029272,7]
[378517960,1754891451074,-151.0,0.00029272,7]
[378517961,1754891451084,-151.0,0.00029272,7]
[378517962,1754891451095,-17871.74,0.000293,7]
[378517963,1754891451105,-453.0,0.0002933,2]
[378517964,1754891451115,-208.0,0.0002937,34]
[378517965,1754891451125,-176.79,0.00029474,2]
[378517966,1754891451134,-365.11,0.00029474,2]
[378517967,1754891451144,-454.07,0.000295,7]
[378517968,1754891451154,-1400.71,0.00029589,12]
[378517969,1754891451163,-1047.52,0.000296,7]
[378517970,1754891451173,-153.80041322,0.00029623,7]
[378517971,1754891451182,-188.93,0.00029658,30]
[378517972,1754891451192,-1500.0,0.00029874,15]
[378517973,1754891451201,-209.0,0.0002989,30]
[378517974,1754891451212,-76893.921675,0.000299,2]
[378517975,1754891451222,-513.78,0.000299,7]
[378517976,1754891451232,-231.96606427,0.0002999,2]
[378517977,1754891451242,-3019.0,0.0003,5]
[378517978,1754891451252,-19428.47978373,0.0003,2]
[378517979,1754891451262,-1000.0,0.0003,7]
[378517980,1754891451271,-1774.51361938,0.0003,2]
[378517981,1754891451281,-162.06835106,0.0003,2]
[378517982,1754891451290,-978.58538159,0.0003,2]
[378517983,1754891451300,-599.52521807,0.0003,2]
[378517984,1754891451311,-151.0,0.0003,5]
[378517985,1754891451320,-151.0,0.0003,5]
[378517986,1754891451332,-151.0,0.0003,7]
[378517987,1754891451342,-151.0,0.0003,7]
[378517988,1754891451352,-368.0,0.0003,30]
[378517989,1754891451361,-162.0,0.0003,5]
[378517990,1754891451371,-999.56440851,0.0003,15]
[378517991,1754891451380,-7621.0,0.0003,14]
[378517992,1754891451389,-1002.37139394,0.0003,14]
[378517993,1754891451399,-717.86995055,0.0003,14]
[378517994,1754891451409,-400.0,0.0003,2]
[378517995,1754891451418,-310.55,0.0003,2]
[378517996,1754891451428,-166.0,0.0003,120]
[378517997,1754891451437,-41406.92,0.0003,2]
[378517998,1754891451447,-1515.934236,0.0003,2]
[378517999,1754891451456,-165.42495152,0.0003,14]
[378518000,1754891451466,-334.3204981,0.00030036,2]
[378518001,1754891451475,-795.205187,0.0003011,7]
[378518002,1754891451485,-795.205187,0.0003011,7]
[378518003,1754891451494,-235.030308,0.0003011,7]
[378518004,1754891451504,-235.030308,0.0003011,7]
[378518005,1754891451513,-285.25996,0.0003011,7]
[378518006,1754891451523,-285.25996,0.0003011,7]
[378518007,1754891451533,-312.145439,0.0003011,7]
[378518008,1754891451542,-312.145439,0.0003011,7]
[378518009,1754891451552,-354.007611,0.0003011,7]
[378518010,1754891451561,-354.007611,0.0003011,7]
[378518011,1754891451570,-218.072891,0.0003011,7]
[378518012,1754891451580,-320.74051982,0.00030119,2]
[378518013,1754891451590,-13531.22792608,0.0003013,2]
[378518014,1754891451600,-305.20191625,0.0003013,2]
[378518015,1754891451610,-197.04347585,0.0003013,2]
[378518016,1754891451619,-200.72389001,0.0003013,2]
[378518017,1754891451629,-400.13138366,0.0003013,5]
[378518018,1754891451639,-274.765301,0.00030136,7]
[378518019,1754891451648,-274.76530698,0.00030136,7]
[378518020,1754891451657,-230.660612,0.00030136,7]
[378518021,1754891451667,-230.660603,0.00030136,7]
[378518022,1754891451677,-151.0,0.00030136,7]
[378518023,1754891451687,-151.01495,0.00030136,7]
[378518024,1754891451697,-1013.752227,0.00030136,7]
[378518025,1754891451707,-1013.75223,0.00030136,7]
[378518026,1754891451717,-151.0,0.00030136,7]
[378518027,1754891451727,-2987.0,0.00030136,5]
[378518028,1754891451736,-784.69,0.00030136,2]
[378518029,1754891451746,-461.53390379,0.00030136,30]
[378518030,1754891451756,-200.0,0.00030136,2]
[378518031,1754891451766,-400.0,0.00030136,60]
[378518032,1754891451775,-400.0,0.00030136,2]
[378518033,1754891451785,-400.40211521,0.00030136,2]
[378518034,1754891451795,-520.91,0.00030136,2]
[378518035,1754891451805,-520.91,0.00030136,2]
[378518036,1754891451814,-520.91,0.00030136,2]
[378518037,1754891451824,-520.91,0.00030136,2]
[378518038,1754891451837,-520.91,0.00030136,2]
[378518039,1754891451848,-520.91,0.00030136,2]
[378518040,1754891451857,-520.91,0.00030136,2]
[378518041,1754891451866,-520.91,0.00030136,2]
[378518042,1754891451876,-520.91,0.00030136,2]
[378518043,1754891451885,-520.91,0.00030136,2]
[378518044,1754891451895,-520.91,0.00030136,2]
[378518045,1754891451905,-520.91,0.00030136,2]
[378518046,1754891451914,-520.91,0.00030136,2]
[378518047,1754891451924,-520.91,0.00030136,2]
[378518048,1754891451933,-520.91,0.00030136,2]
[378518049,1754891451942,-520.91,0.00030136,2]
[378518050,1754891451952,-520.91,0.00030136,2]
[378518051,1754891451963,-520.91,0.00030136,2]
[378518052,1754891451979,-520.91,0.00030136,2]
[378518053,1754891451989,-520.91,0.00030136,2]
[378518054,1754891451999,-520.91,0.00030136,2]
[378518055,1754891452008,-520.91,0.00030136,2]
[378518056,1754891452020,-520.91,0.00030136,2]
[378518057,1754891452030,-520.99611367,0.00030136,2]
[378518058,1754891452040,-400.0,0.00030136,60]
[378518059,1754891452049,-500.0,0.00030136,2]
[378518060,1754891452059,-502.16685909,0.00030136,2]
[378518061,1754891452070,-404.66224822,0.00030136,14]
[378518062,1754891452081,-200.0,0.00030136,2]
[378518063,1754891452091,-400.0,0.00030136,2]
[378518064,1754891452102,-400.0,0.00030136,2]
[378518065,1754891452118,-400.0,0.00030136,2]
[378518066,1754891452139,-1550.1,0.00030136,2]
[378518067,1754891452148,-400.0,0.00030136,7]
[378518068,1754891452158,-507.87447138,0.00030136,60]
[378518069,1754891452167,-400.0,0.00030136,7]
[378518070,1754891452177,-723.61,0.00030136,60]
[378518071,1754891452186,-1416.82,0.00030136,120]
[378518072,1754891452196,-404.24476716,0.00030136,120]
[378518073,1754891452206,-400.0,0.00030136,120]
[378518074,1754891452215,-400.0,0.00030136,120]
[378518075,1754891452225,-500.57,0.00030136,120]
[378518076,1754891452234,-1154.41,0.00030136,120]
[378518077,1754891452244,-400.0,0.00030136,120]
[378518078,1754891452253,-1155.23,0.00030136,120]
[378518079,1754891452262,-400.0,0.00030136,120]
[378518080,1754891452272,-1002.07,0.00030136,120]
[378518081,1754891452281,-949.86,0.00030136,120]
[378518082,1754891452291,-6391.04,0.00030136,120]
[378518083,1754891452300,-830.65,0.00030136,120]
[378518084,1754891452310,-1084.61,0.00030136,120]
[378518085,1754891452319,-400.0,0.00030136,120]
[378518086,1754891452329,-400.0,0.00030136,120]
[378518087,1754891452338,-550.62,0.00030136,120]
[378518088,1754891452347,-706.63,0.00030136,120]
[378518089,1754891452357,-400.0,0.00030136,120]
[378518090,1754891452366,-758.68,0.00030136,120]
[378518091,1754891452375,-841.96,0.00030136,120]
[378518092,1754891452385,-400.0,0.00030136,120]
[378518093,1754891452394,-1369.25,0.00030136,120]
[378518094,1754891452403,-492.3032167,0.00030136,120]
[378518095,1754891452413,-355.75742447,0.00030136,120]
[378518096,1754891452422,-489.13654852,0.00030136,120]
[378518097,1754891452431,-1734.29,0.00030136,120]
[378518098,1754891452441,-400.0,0.00030136,120]
[378518099,1754891452451,-400.0,0.00030136,120]
[378518100,1754891452461,-1110.31,0.00030136,120]
[378518101,1754891452470,-964.85,0.00030136,120]
[378518102,1754891452480,-400.0,0.00030136,120]
[378518103,1754891452490,-571.91,0.00030136,120]
[378518104,1754891452499,-649.02,0.00030136,120]
[378518105,1754891452508,-847.15,0.00030136,120]
[378518106,1754891452517,-400.0,0.00030136,120]
[378518107,1754891452527,-400.0,0.00030136,120]
[378518108,1754891452536,-444.98935686,0.00030136,120]
[378518109,1754891452545,-680.42,0.00030136,120]
[378518110,1754891452555,-400.0,0.00030136,120]
[378518111,1754891452564,-7989.16,0.00030136,120]
[378518112,1754891452574,-400.0,0.00030136,120]
[378518113,1754891452583,-542.52,0.00030136,120]
[378518115,1754891452697,-1445.95,0.00030136,120]
[378518116,1754891452706,-400.0,0.00030136,120]
[378518117,1754891452715,-400.0,0.00030136,120]
[378518118,1754891452724,-400.0,0.00030136,120]
[378518120,1754891452733,-401.91144508,0.00030136,120]
[378518121,1754891452742,-400.0,0.00030136,120]
[378518122,1754891452751,-400.0,0.00030136,120]
[378518123,1754891452760,-400.0,0.00030136,120]
[378518124,1754891452769,-402.76909378,0.00030136,120]
[378518125,1754891452778,-400.0,0.00030136,120]
[378518126,1754891452786,-1636.59,0.00030136,120]
[378518127,1754891452795,-400.0,0.00030136,120]
[378518128,1754891452805,-400.0,0.00030136,120]
[378518129,1754891452814,-400.0,0.00030136,120]
[378518130,1754891452823,-1098.82,0.00030136,120]
[378518131,1754891452832,-400.0,0.00030136,120]
[378518132,1754891452841,-537.11,0.00030136,30]
[378518133,1754891452851,-400.0,0.00030136,120]
[378518134,1754891452860,-400.0,0.00030136,120]
[378518135,1754891452869,-400.0,0.00030136,120]
[378518136,1754891452879,-1285.68,0.00030136,120]
[378518137,1754891452888,-400.0,0.00030136,120]
[378518138,1754891452897,-416.434948,0.00030136,120]
[378518139,1754891452907,-400.0,0.00030136,120]
[378518140,1754891452917,-400.0,0.00030136,120]
[378518141,1754891452927,-803.02,0.00030136,120]
[378518142,1754891452936,-400.0,0.00030136,120]
[378518143,1754891452945,-400.0,0.00030136,120]
[378518144,1754891452954,-400.0,0.00030136,120]
[378518145,1754891452964,-796.69,0.00030136,120]
[378518146,1754891452973,-403.73618737,0.00030136,120]
[378518147,1754891452982,-400.0,0.00030136,120]
[378518148,1754891452991,-400.0,0.00030136,120]
[378518149,1754891453000,-890.82,0.00030136,120]
[378518150,1754891453010,-400.0,0.00030136,120]
[378518151,1754891453022,-1035.62,0.00030136,120]
[378518152,1754891453040,-400.0,0.00030136,120]
[378518153,1754891453060,-400.0,0.00030136,120]
[378518154,1754891453073,-401.36833293,0.00030136,120]
[378518155,1754891453082,-1591.94,0.00030136,120]
[378518156,1754891453091,-400.0,0.00030136,120]
[378518157,1754891453101,-485.63891661,0.00030136,120]
[378518158,1754891453111,-400.0,0.00030136,120]
[378518159,1754891453120,-675.93,0.00030136,120]
[378518160,1754891453129,-400.0,0.00030136,120]
[378518161,1754891453139,-400.0,0.00030136,120]
[378518162,1754891453148,-400.0,0.00030136,120]
[378518163,1754891453157,-400.0,0.00030136,120]
[378518164,1754891453166,-400.0,0.00030136,120]
[378518165,1754891453175,-405.22049993,0.00030136,120]
[378518166,1754891453184,-400.0,0.00030136,120]
[378518167,1754891453193,-1242.02,0.00030136,120]
[378518168,1754891453202,-400.0,0.00030136,120]
[378518169,1754891453211,-1030.98,0.00030136,120]
[378518170,1754891453220,-400.0,0.00030136,120]
[378518171,1754891453229,-402.03582961,0.00030136,120]
[378518172,1754891453239,-400.0,0.00030136,120]
[378518173,1754891453248,-400.0,0.00030136,120]
[378518174,1754891453257,-463.77,0.00030136,120]
[378518175,1754891453267,-400.0,0.00030136,120]
[378518176,1754891453276,-400.0,0.00030136,120]
[378518177,1754891453285,-400.0,0.00030136,120]
[378518178,1754891453294,-400.0,0.00030136,120]
[378518179,1754891453304,-400.0,0.00030136,120]
[378518180,1754891453313,-842.01,0.00030136,120]
[378518181,1754891453322,-400.0,0.00030136,120]
[378518182,1754891453331,-400.0,0.00030136,120]